[Event "AZE-ch Women 2019"]
[Site "Baku"]
[Date "2019.02.09"]
[Round "6.5"]
[White "Ismayil, Malak"]
[Black "Hojjatova, Aydan"]
[Result "0-1"]
[ECO "C03"]
[WhiteElo "1905"]
[BlackElo "2303"]
[Annotator "NA"]
[PlyCount "142"]
[EventDate "2019.02.04"]
[EventType "swiss"]
[EventCountry "AZE"]
[SourceTitle "playchess.com"]
[Source "ChessBase"]
[SourceQuality "1"]
[TimeControl "40/5400+30:1800+30"]

1. d4 {[%emt 0:00:00]} e6 {[%emt 0:00:00]} 2. e4 {[%emt 0:00:00]} d5 {[%emt 0:00:00]} 3. Nd2 {[%emt 0:00:00]} a6 4. Ngf3 {[%emt 0:00:17]} c5 {[%emt 0:00:08]} 5. c3 {[%emt 0:00:15]} Nc6 {[%emt 0:00:14]} 6. Bd3 {[%emt 0:00:11]} cxd4 {[%emt 0:00:25]} 7. cxd4 {[%emt 0:00:24]} dxe4 8. Nxe4 {[%emt 0:00:10]} Be7 {[%emt 0:01:35]} 9. a3 {[%emt 0:06:06]} Nf6 {[%emt 0:00:21]} 10. O-O {[%emt 0:00:43]} O-O {[%emt 0:00:20]} 11. Nc3 {[%emt 0:02:07]} b5 {[%emt 0:03:46]} 12. Be3 {[%emt 0:09:41]} Bb7 {[%emt 0:08:53]} 13. Rc1 {[%emt 0:10:49]} Rc8 {[%emt 0:05:06]} 14. Qe2 {[%emt 0:07:59]} Qd6 {[%emt 0:09:13] B22: Sicilian: 2 c3} (14... b4 15. Ne4 a5 16. Nc5 Ba8 17. Rfd1 Qd6 18. Rc4 Rfd8 19. Rdc1 h6 20. Bc2 Qd5 21. h3 Bf8 22. axb4 axb4 {½-½ (83) Futida,S (2311)-Rocco,J (2466) CADAP corr 2000}) 15. Rfd1 $146 {[%emt 0:12:28]} ({Predecessor:} 15. b4 Bd8 16. d5 Nxd5 17. Bc5 Nxc3 18. Rxc3 Qf4 19. Bxf8 Nd4 20. Nxd4 Rxc3 21. Bc5 e5 22. g3 {1-0 (33) Tanrikulu,S (2259)-Ali Marandi,C (1854) Safranbolu 2009}) 15... Rfd8 {[%emt 0:03:19]} 16. h3 {[%emt 0:14:28]} Qb8 {[%emt 0:05:35]} 17. Ne4 {[%emt 0:18:36]} Nxe4 {[%emt 0:04:43]} 18. Bxe4 {[%emt 0:00:04]} Na5 {[%emt 0:01:54]} 19. Bxb7 {[%emt 0:02:44]} Qxb7 20. Rxc8 $15 {[%emt 0:10:22]} Rxc8 {[%emt 0:01:44]} 21. Rc1 {[%emt 0:00:35]} Rxc1+ {[%emt 0:09:39]} 22. Bxc1 {[%emt 0:00:04]} Qc6 {[%emt 0:00:07]} 23. Bf4 {[%emt 0:02:04]} f6 {[%emt 0:00:59]} 24. h4 {[%emt 0:00:59]} Nc4 {[%emt 0:06:07]} 25. Qc2 {[%emt 0:00:39]} Qd7 {[%emt 0:03:18]} 26. a4 {[%emt 0:00:33]} Nb6 {[%emt 0:01:29]} 27. axb5 {[%emt 0:00:12]} axb5 {[%emt 0:01:26]} 28. b3 {[%emt 0:00:44]} Nd5 {[%emt 0:01:52]} 29. Bd2 {[%emt 0:00:11]} b4 {[%emt 0:03:49]} 30. Qc4 {[%emt 0:00:47]} Qa7 31. Qb5 {[%emt 0:00:23]} Kf7 {[%emt 0:02:25]} 32. Qd3 {[%emt 0:00:06]} g6 {[%emt 0:02:25]} 33. h5 {[%emt 0:00:54]} Qa1+ {[%emt 0:00:35]} 34. Kh2 {[%emt 0:00:15]} Qd1 {[%emt 0:01:27]} 35. hxg6+ {[%emt 0:00:52]} hxg6 {[%emt 0:00:01]} 36. g3 {[%emt 0:00:36]} Nc3 {[%emt 0:09:45]} 37. Nh4 {[%emt 0:00:32]} Qh5 {[%emt 0:03:59]} 38. Kg2 {[%emt 0:00:24]} g5 {[%emt 0:00:21]} 39. Nf3 {[%emt 0:00:34]} g4 {[%emt 0:04:48]} 40. Ne1 {[%emt 0:00:00]} Qd5+ {[%emt 0:00:00]} 41. Kg1 {[%emt 0:02:27]} Ne4 {[%emt 0:10:04]} 42. Be3 {[%emt 0:03:47]} f5 {[%emt 0:02:00]} 43. Qc2 {[%emt 0:05:41]} Nc3 {[%emt 0:02:26]} 44. Nd3 {[%emt 0:02:12]} Bd6 {[%emt 0:00:25]} 45. Nc1 {[%emt 0:03:18]} Qf3 {[%emt 0:00:38]} 46. Qd2 {[%emt 0:02:39]} Nd5 {[%emt 0:05:27]} 47. Ne2 {[%emt 0:02:21]} Nf6 {[%emt 0:03:08]} 48. Nc1 {[%emt 0:01:47]} Nd5 {[%emt 0:03:11]} 49. Ne2 {[%emt 0:00:32]} Qe4 {[%emt 0:00:14]} 50. Kh2 {[%emt 0:02:29]} Qb1 {[%emt 0:00:59]} 51. Nc1 {[%emt 0:00:38]} Qe4 {[%emt 0:02:54]} 52. Ne2 {[%emt 0:00:18]} Qf3 {[%emt 0:02:45]} 53. Kg1 {[%emt 0:00:54]} Ke8 {[%emt 0:02:26]} 54. Qd3 {[%emt 0:04:14]} Kf7 {[%emt 0:02:27]} 55. Qd2 {[%emt 0:00:09]} Ke7 {[%emt 0:01:16]} 56. Qd3 {[%emt 0:00:21]} Kf6 {[%emt 0:01:50]} 57. Qd2 {[%emt 0:01:46]} Ke7 {[%emt 0:01:54]} 58. Qd3 {[%emt 0:02:14]} Nxe3 {[%emt 0:00:40]} 59. Qxe3 {[%emt 0:00:53]} Kd7 {[%emt 0:00:12]} 60. Kf1 {[%emt 0:01:49]} Qxe3 {[%emt 0:00:19]} 61. fxe3 {[%emt 0:00:04]} Kc6 {[%emt 0:00:01]} 62. Kg2 {[%emt 0:00:59]} Kd5 {[%emt 0:00:14]} 63. Kf2 {[%emt 0:00:19]} Ke4 {[%emt 0:00:06]} 64. Nc1 {[%emt 0:00:04]} Bxg3+ {[%emt 0:02:49]} 65. Kxg3 {[%emt 0:00:45]} Kxe3 {[%emt 0:00:01]} 66. Kg2 {[%emt 0:00:48]} f4 {[%emt 0:00:31]} 67. Kf1 {[%emt 0:00:16]} f3 {[%emt 0:00:34]} 68. Na2 {[%emt 0:00:24]} g3 {[%emt 0:00:25]} 69. Nxb4 {[%emt 0:00:16]} g2+ {[%emt 0:00:08]} 70. Kg1 {[%emt 0:00:04]} f2+ {[%emt 0:00:34]} 71. Kxg2 {[%emt 0:00:07]} Ke2 {[%emt 0:00:00]} 0-1

[Event "AZE-ch Women 2019"]
[Site "Baku"]
[Date "2019.02.09"]
[Round "6.6"]
[White "Soyunlu, Narmin"]
[Black "Gasimova, Samra"]
[Result "1-0"]
[ECO "D35"]
[WhiteElo "2029"]
[BlackElo "1693"]
[Annotator "NA"]
[PlyCount "52"]
[EventDate "2019.02.04"]
[EventType "swiss"]
[EventCountry "AZE"]
[SourceTitle "playchess.com"]
[Source "ChessBase"]
[SourceQuality "1"]
[TimeControl "40/5400+30:1800+30"]

{[%evp 20,43,49,38,76,78,88,44,67,49,20,52,89,-49,-36,-109,-63,-108,-89,32767,32767,32767,-43,-49,-30,-7]} 1. d4 {[%emt 0:00:00]} d5 {[%emt 0:00:00]} 2. c4 {[%emt 0:00:00]} e6 {[%emt 0:00:00]} 3. cxd5 {[%emt 0:00:00]} exd5 {[%emt 0:00:00]} 4. Nc3 {[%emt 0:00:00]} Nf6 {[%emt 0:00:25]} 5. Bg5 {[%emt 0:00:21]} Bb4 {[%emt 0:01:17]} 6. e3 {[%emt 0:02:12]} O-O {[%emt 0:00:26]} 7. Bd3 {[%emt 0:00:23]} c6 {[%emt 0:04:41] D35: Queen's Gambit Declined: Exchange Variation} 8. Nge2 {[%emt 0:00:39]} b6 $146 {[%emt 0:01:40]} ({Predecessor:} 8... Nbd7 9. O-O Re8 10. Qc2 Nf8 11. f3 h6 12. Bxf6 Qxf6 13. e4 dxe4 14. fxe4 Qg5 15. Rf3 Bxc3 16. bxc3 f6 {1-0 (28) Kunin,V (2551)-Hofmann,T (2248) Schwarzach 2017}) 9. O-O {[%emt 0:01:00]} Bb7 {[%emt 0:00:20]} 10. f3 {[%emt 0:04:57]} h6 {[%emt 0:05:42]} 11. Bh4 {[%emt 0:01:55]} (11. Bxf6 $5 Qxf6 12. e4 $11) 11... c5 {[%emt 0:06:01]} 12. a3 {[%emt 0:04:56]} Bxc3 {[%emt 0:02:44]} 13. bxc3 {[%emt 0:00:21]} Nbd7 {[%emt 0:04:21]} 14. e4 {[%emt 0:12:51]} g5 {[%emt 0:00:57]} 15. e5 {[%emt 0:03:50]} gxh4 {[%emt 0:03:56]} 16. exf6 {[%emt 0:00:02]} (16. Qd2 $14 Kg7 17. exf6+ Qxf6 18. Nf4) 16... Qxf6 {[%emt 0:00:09]} 17. f4 {[%emt 0:07:41]} (17. Qd2 $15) 17... Kh8 {[%emt 0:03:58]} 18. Rf3 {[%emt 0:07:51]} Rg8 {[%emt 0:09:23]} 19. Kh1 {[%emt 0:07:35]} Nf8 {[%emt 0:12:36]} 20. Qd2 {[%emt 0:13:17]} Ne6 {[%emt 0:09:51]} 21. Rg1 {[%emt 0:03:02]} cxd4 $11 {[%emt 0:04:08]} 22. cxd4 {[%emt 0:01:01]} Rg7 {[%emt 0:04:00]} 23. Re3 {[%emt 0:10:54]} h3 {[%emt 0:16:21]} 24. Rxh3 {[%emt 0:01:07]} Rag8 {[%emt 0:00:23]} 25. Rh5 {[%emt 0:08:16]} Nf8 {[%emt 0:07:53]} 26. Ng3 {[%emt 0:03:11]} Bc8 1-0

[Event "AZE-ch Women 2019"]
[Site "Baku"]
[Date "2019.02.09"]
[Round "6.7"]
[White "Hajiyeva, Laman"]
[Black "Babazade, Zhala"]
[Result "1/2-1/2"]
[ECO "E81"]
[WhiteElo "2040"]
[BlackElo "1823"]
[Annotator "NA"]
[PlyCount "173"]
[EventDate "2019.02.04"]
[EventType "swiss"]
[EventCountry "AZE"]
[SourceTitle "playchess.com"]
[Source "ChessBase"]
[SourceQuality "1"]
[TimeControl "40/5400+30:1800+30"]

1. d4 {[%emt 0:00:00]} Nf6 {[%emt 0:00:00]} 2. c4 {[%emt 0:00:00]} g6 {[%emt 0:00:00]} 3. Nc3 {[%emt 0:00:00]} Bg7 {[%emt 0:00:00]} 4. e4 {[%emt 0:00:00]} d6 {[%emt 0:00:23]} 5. f3 {[%emt 0:00:00]} O-O {[%emt 0:00:26]} 6. Be3 {[%emt 0:00:02]} c6 {[%emt 0:00:37]} 7. Qd2 {[%emt 0:00:52]} a6 {[%emt 0:01:11]} 8. Bd3 {[%emt 0:03:37]} b5 {[%emt 0:00:34]} 9. Nge2 {[%emt 0:01:26]} Nbd7 {[%emt 0:02:07]} 10. O-O {[%emt 0:01:38]} Bb7 {[%emt 0:02:48] E81: King's Indian: Sämisch: 6th move deviations (including 6 Be3 c6)} (10... bxc4 11. Bxc4 d5 12. Bb3 Nb6 13. e5 Ne8 14. Na4 Nxa4 15. Bxa4 Qb6 16. Rac1 Bd7 17. Nf4 Nc7 18. Nd3 Rab8 19. Nc5 {½-½ (59) Neverov,V (2484)-Bortnyk,O (2600) Omelnyk 2017}) 11. a3 {[%emt 0:08:13]} bxc4 {[%emt 0:08:42]} 12. Bxc4 {[%emt 0:00:11]} d5 $146 {[%emt 0:00:42]} ({Predecessor:} 12... Qc7 13. b4 Nb6 14. Bd3 a5 15. b5 c5 16. Rac1 Rfc8 17. e5 Nfd7 18. Ne4 {0-1 (25) Kumar,P (1976)-Humphreys,S (1993) ICCF email 2008}) 13. exd5 {[%emt 0:10:20]} (13. Ba2 $1 $14) 13... Nxd5 {[%emt 0:00:30]} 14. Bg5 {[%emt 0:04:56]} Re8 {[%emt 0:01:14]} 15. Rac1 {[%emt 0:06:19]} Nxc3 {[%emt 0:06:07]} 16. bxc3 {[%emt 0:01:31]} Qa5 {[%emt 0:00:40]} 17. Rb1 {[%emt 0:10:54]} Bc8 {[%emt 0:02:39]} 18. f4 {[%emt 0:20:36]} Nf6 {[%emt 0:07:19]} 19. Qa2 {[%emt 0:02:20]} (19. Ng3 $1 $11) 19... e6 {[%emt 0:00:56]} (19... Nd5 $17) 20. Bxf6 {[%emt 0:07:01]} Bxf6 {[%emt 0:01:25]} 21. Rf3 {[%emt 0:06:40]} Ra7 {[%emt 0:04:21]} 22. Ng3 {[%emt 0:02:28]} Be7 $2 {[%emt 0:03:45] [#]} (22... Rd8 $11) 23. f5 $16 {[%emt 0:02:50]} Bh4 {[%emt 0:18:58]} 24. fxg6 {[%emt 0:01:28]} hxg6 {[%emt 0:02:08]} 25. Ne4 {[%emt 0:00:15]} Qd8 {[%emt 0:03:01]} 26. Qd2 {[%emt 0:02:28]} Kg7 {[%emt 0:03:02]} 27. Rbf1 {[%emt 0:02:40]} f5 {[%emt 0:00:55]} 28. Nc5 {[%emt 0:00:42]} e5 {[%emt 0:02:58]} 29. Rb1 {[%emt 0:01:58]} e4 {[%emt 0:01:54]} 30. Rff1 {[%emt 0:00:25]} e3 {[%emt 0:02:41]} 31. Qe2 {[%emt 0:00:06]} Qd6 {[%emt 0:00:51]} 32. Nd3 {[%emt 0:02:01]} Qxa3 {[%emt 0:05:39]} 33. Rb3 {[%emt 0:00:04]} Qd6 {[%emt 0:00:05]} 34. Ne5 {[%emt 0:00:54]} Bf2+ {[%emt 0:00:28]} 35. Rxf2 {[%emt 0:00:49]} exf2+ {[%emt 0:00:06]} 36. Qxf2 {[%emt 0:00:01]} Rb7 {[%emt 0:01:19]} 37. Qg3 {[%emt 0:01:52]} Rxb3 {[%emt 0:00:39]} 38. Bxb3 {[%emt 0:00:02]} c5 {[%emt 0:00:35]} 39. Qe3 {[%emt 0:01:10]} cxd4 {[%emt 0:02:56]} 40. cxd4 {[%emt 0:00:00]} Be6 {[%emt 0:00:00]} 41. Bxe6 {[%emt 0:13:58]} Rxe6 {[%emt 0:04:10]} 42. h4 {[%emt 0:00:39]} Qd8 {[%emt 0:11:11]} 43. Qc3 {[%emt 0:08:54]} Rd6 {[%emt 0:07:15]} 44. Nf3 {[%emt 0:07:40]} Qb6 {[%emt 0:06:58]} 45. Ng5 {[%emt 0:01:07]} a5 {[%emt 0:09:17]} 46. Qe3 {[%emt 0:00:38]} Qd8 {[%emt 0:01:16]} 47. Kh1 {[%emt 0:00:44]} Qf6 {[%emt 0:00:32]} 48. Qe8 {[%emt 0:00:34]} Rxd4 {[%emt 0:03:42]} 49. Ne6+ {[%emt 0:00:04]} Kh6 {[%emt 0:00:12]} 50. Nxd4 {[%emt 0:00:11]} Qxh4+ {[%emt 0:00:08]} 51. Kg1 Qxd4+ {[%emt 0:00:11]} 52. Kh2 {[%emt 0:01:10]} a4 {[%emt 0:02:07]} 53. Qf8+ {[%emt 0:00:22]} Kh5 {[%emt 0:01:56]} 54. Qa3 {[%emt 0:00:22]} Qc4 {[%emt 0:00:36]} 55. Qf3+ {[%emt 0:00:31]} Kg5 {[%emt 0:00:41]} 56. Qg3+ {[%emt 0:00:08]} Qg4 {[%emt 0:00:17]} 57. Qa3 {[%emt 0:00:06]} Qe4 {[%emt 0:01:16]} 58. Qg3+ {[%emt 0:00:37]} Kh5 {[%emt 0:00:11]} 59. Qc3 {[%emt 0:00:16]} Qf4+ {[%emt 0:00:34]} 60. Kg1 {[%emt 0:00:10]} Qd6 {[%emt 0:00:56]} 61. Qf3+ {[%emt 0:02:34]} Kg5 {[%emt 0:00:37]} 62. Qe3+ {[%emt 0:00:01]} f4 {[%emt 0:00:30]} 63. Qe2 {[%emt 0:00:50]} a3 64. Qa2 {[%emt 0:00:13]} Qc5+ {[%emt 0:01:25]} 65. Kh2 {[%emt 0:00:05]} Kf5 {[%emt 0:00:41]} 66. Qf7+ {[%emt 0:00:14]} Kg5 {[%emt 0:00:12]} 67. Qb3 {[%emt 0:00:15]} Kf6 {[%emt 0:00:22]} 68. Qg8 {[%emt 0:00:33]} Qh5+ {[%emt 0:00:31]} 69. Kg1 {[%emt 0:00:01]} Qd1+ {[%emt 0:00:08]} 70. Kh2 {[%emt 0:00:05]} Qd6 {[%emt 0:00:18]} 71. Qh8+ {[%emt 0:00:11]} Kg5 {[%emt 0:00:18]} 72. Kh1 {[%emt 0:00:42]} a2 {[%emt 0:00:15]} 73. Qa1 {[%emt 0:00:06]} Qd5 {[%emt 0:00:32]} 74. Kh2 {[%emt 0:00:13]} Kg4 {[%emt 0:00:59]} 75. Qb2 {[%emt 0:01:02]} g5 {[%emt 0:01:27]} 76. Qc3 {[%emt 0:02:34]} f3 {[%emt 0:01:03]} 77. gxf3+ {[%emt 0:01:00]} Qxf3 {[%emt 0:00:01]} 78. Qc8+ {[%emt 0:00:04]} Qf5 {[%emt 0:00:07]} 79. Qc3 {[%emt 0:00:42]} Qf2+ {[%emt 0:00:17]} 80. Kh1 {[%emt 0:00:01]} Qf1+ {[%emt 0:00:11]} 81. Kh2 {[%emt 0:00:03]} a1=Q {[%emt 0:00:12]} 82. Qf3+ {[%emt 0:00:05]} Kh4 {[%emt 0:00:31]} 83. Qxf1 {[%emt 0:00:03]} Qe5+ {[%emt 0:01:23]} 84. Kh1 {[%emt 0:00:34]} g4 {[%emt 0:00:31]} 85. Qf2+ {[%emt 0:01:42]} g3 {[%emt 0:00:12]} 86. Qd2 {[%emt 0:00:19]} Qe4+ {[%emt 0:00:39]} 87. Kg1 {[%emt 0:00:12]} 1/2-1/2

[Event "AZE-ch Women 2019"]
[Site "Baku"]
[Date "2019.02.09"]
[Round "6.8"]
[White "Heydarova, Aytaj"]
[Black "Jafarova, Aysel"]
[Result "1-0"]
[ECO "A08"]
[WhiteElo "1747"]
[BlackElo "1376"]
[Annotator "NA"]
[PlyCount "81"]
[EventDate "2019.02.04"]
[EventType "swiss"]
[EventCountry "AZE"]
[SourceTitle "playchess.com"]
[Source "ChessBase"]
[SourceQuality "1"]
[TimeControl "40/5400+30:1800+30"]

1. Nf3 {[%emt 0:00:00]} d5 {[%emt 0:00:00]} 2. g3 {[%emt 0:00:00]} c5 {[%emt 0:00:00]} 3. Bg2 {[%emt 0:00:00]} Nc6 4. d3 Nf6 5. O-O {[%emt 0:00:02]} Bg4 {[%emt 0:00:02]} 6. Nbd2 {[%emt 0:00:11]} e6 {[%emt 0:00:05]} 7. c3 {[%emt 0:04:18]} Be7 {[%emt 0:00:08]} 8. Qc2 {[%emt 0:01:41]} O-O {[%emt 0:00:21]} 9. e4 {[%emt 0:00:15]} Rc8 {[%emt 0:00:42]} 10. Re1 {[%emt 0:08:30]} b5 {[%emt 0:02:19]} 11. a4 {[%emt 0:05:30]} Qb6 {[%emt 0:04:26]} 12. axb5 {[%emt 0:01:50]} Qxb5 {[%emt 0:00:04]} 13. h3 {[%emt 0:12:24]} Bxf3 {[%emt 0:00:18]} 14. Nxf3 {[%emt 0:01:55]} a5 {[%emt 0:01:54]} 15. exd5 {[%emt 0:09:29]} exd5 {[%emt 0:01:33]} 16. Nh4 {[%emt 0:00:40]} Rfe8 {[%emt 0:09:26]} 17. Nf5 {[%emt 0:03:17]} g6 {[%emt 0:02:03]} 18. Nxe7+ {[%emt 0:07:13]} Nxe7 {[%emt 0:05:25]} 19. Bg5 {[%emt 0:04:56]} Kg7 {[%emt 0:01:08]} 20. g4 {[%emt 0:17:23]} h6 {[%emt 0:01:16]} 21. Bxf6+ {[%emt 0:01:22]} Kxf6 {[%emt 0:00:11]} 22. c4 {[%emt 0:00:28]} Qb4 {[%emt 0:03:13]} 23. cxd5 {[%emt 0:01:16]} Kg7 {[%emt 0:07:57]} 24. Re4 {[%emt 0:00:23]} Qb6 {[%emt 0:02:17]} 25. Rae1 {[%emt 0:01:19]} Kf8 {[%emt 0:01:59]} 26. Qc3 {[%emt 0:01:23]} Ng8 {[%emt 0:03:41]} 27. Rxe8+ {[%emt 0:03:34]} Rxe8 {[%emt 0:00:08]} 28. Rxe8+ {[%emt 0:00:39]} Kxe8 {[%emt 0:00:04]} 29. Qe5+ {[%emt 0:00:19]} Kf8 {[%emt 0:02:46]} 30. d6 {[%emt 0:00:13]} a4 {[%emt 0:03:54]} 31. Bd5 {[%emt 0:02:05]} Qd8 {[%emt 0:03:22]} 32. Bc4 {[%emt 0:00:08]} Nf6 {[%emt 0:01:28]} 33. Qxc5 {[%emt 0:00:02]} Nd7 {[%emt 0:00:57]} 34. Qc7 {[%emt 0:00:38]} Qe8 {[%emt 0:01:39]} 35. Bb5 {[%emt 0:01:02]} Qe1+ {[%emt 0:00:34]} 36. Kg2 {[%emt 0:00:01]} Nf6 {[%emt 0:01:12]} 37. d7 {[%emt 0:00:18]} Nxd7 {[%emt 0:00:27]} 38. Qxd7 {[%emt 0:00:03]} Qa1 {[%emt 0:02:45]} 39. Bc4 {[%emt 0:00:08]} Kg7 {[%emt 0:03:28]} 40. Qxf7+ {[%emt 0:00:00]} Kh8 {[%emt 0:00:00]} 41. Qg8# {[%emt 0:00:16]} 1-0

[Event "AZE-ch Women 2019"]
[Site "Baku"]
[Date "2019.02.09"]
[Round "6.9"]
[White "Hajiyeva, Altunay"]
[Black "Babayeva, Samira"]
[Result "0-1"]
[ECO "B00"]
[WhiteElo "1315"]
[BlackElo "1773"]
[Annotator "NA"]
[PlyCount "136"]
[EventDate "2019.02.04"]
[EventType "swiss"]
[EventCountry "AZE"]
[SourceTitle "playchess.com"]
[Source "ChessBase"]
[SourceQuality "1"]
[TimeControl "40/5400+30:1800+30"]

1. e4 d6 {[%emt 0:10:20]} 2. d4 {[%emt 0:00:00]} c6 {[%emt 0:00:10]} 3. Nc3 {[%emt 0:00:04]} Qc7 {[%emt 0:00:03]} 4. f4 {[%emt 0:00:15]} e5 {[%emt 0:00:14]} 5. Nf3 {[%emt 0:01:25]} Bg4 {[%emt 0:01:02]} 6. Be3 {[%emt 0:06:16]} Nf6 {[%emt 0:02:23]} 7. h3 {[%emt 0:06:08]} Bxf3 {[%emt 0:00:40]} 8. Qxf3 {[%emt 0:01:00]} Nbd7 {[%emt 0:00:13]} 9. a3 {[%emt 0:14:38]} Be7 {[%emt 0:01:26]} 10. Be2 {[%emt 0:02:26]} h6 {[%emt 0:01:02]} 11. g4 {[%emt 0:02:14]} exf4 {[%emt 0:07:13]} 12. Bxf4 {[%emt 0:04:47]} Nh7 {[%emt 0:02:35]} 13. Bc4 {[%emt 0:08:23]} Bh4+ {[%emt 0:04:44]} 14. Bg3 {[%emt 0:05:37]} Ng5 {[%emt 0:04:49]} 15. Qg2 {[%emt 0:04:22]} Bxg3+ {[%emt 0:00:21]} 16. Qxg3 {[%emt 0:00:19]} Nf6 {[%emt 0:00:11]} 17. O-O-O {[%emt 0:07:38]} O-O-O {[%emt 0:04:49]} 18. Rde1 {[%emt 0:04:45]} Rhe8 {[%emt 0:09:38]} 19. Bd3 {[%emt 0:04:50]} Ne6 {[%emt 0:08:11]} 20. Qf2 {[%emt 0:05:17]} b5 {[%emt 0:02:28]} 21. d5 {[%emt 0:10:28]} Nc5 {[%emt 0:03:20]} 22. dxc6 {[%emt 0:01:31]} a6 {[%emt 0:00:40]} 23. Bf1 {[%emt 0:06:55]} Qxc6 {[%emt 0:01:41]} 24. Bg2 {[%emt 0:00:10]} Re5 {[%emt 0:00:40]} 25. Re3 {[%emt 0:00:38]} a5 {[%emt 0:00:39]} 26. Rhe1 {[%emt 0:01:59]} b4 {[%emt 0:00:27]} 27. Nd5 {[%emt 0:00:21]} Nxd5 {[%emt 0:05:35]} 28. exd5 {[%emt 0:00:13]} Qc7 {[%emt 0:00:06]} 29. Qg3 {[%emt 0:00:57]} f6 {[%emt 0:00:39]} 30. Kb1 {[%emt 0:00:39]} Qb6 {[%emt 0:02:50]} 31. Rxe5 {[%emt 0:00:42]} dxe5 {[%emt 0:02:03]} 32. Qe3 {[%emt 0:00:17]} Kc7 {[%emt 0:01:41]} 33. Rd1 {[%emt 0:00:36]} Kd6 {[%emt 0:00:15]} 34. c4 {[%emt 0:00:33]} bxc3 {[%emt 0:00:46]} 35. Qxc3 {[%emt 0:00:07]} Rc8 {[%emt 0:01:11]} 36. Qe3 {[%emt 0:00:20]} Rb8 {[%emt 0:02:20]} 37. Rd2 {[%emt 0:00:52]} Nb3 {[%emt 0:00:33]} 38. Qxb6+ {[%emt 0:00:03]} Rxb6 {[%emt 0:00:14]} 39. Rc2 {[%emt 0:00:53]} Nc5 {[%emt 0:01:32]} 40. Rc3 {[%emt 0:00:00]} e4 {[%emt 0:00:00]} 41. Rc2 {[%emt 0:14:59]} Kxd5 {[%emt 0:02:53]} 42. Rd2+ {[%emt 0:02:41]} Ke5 {[%emt 0:00:31]} 43. Kc2 {[%emt 0:02:39]} Nd3 {[%emt 0:04:27]} 44. Bxe4 {[%emt 0:01:35]} Rxb2+ {[%emt 0:00:15]} 45. Kxd3 {[%emt 0:00:27]} Rxd2+ {[%emt 0:00:25]} 46. Kxd2 {[%emt 0:00:05]} Kxe4 {[%emt 0:00:04]} 47. Ke2 {[%emt 0:08:34]} g6 {[%emt 0:00:39]} 48. Kf2 {[%emt 0:02:24]} Kf4 {[%emt 0:00:15]} 49. a4 {[%emt 0:01:05]} h5 {[%emt 0:00:17]} 50. gxh5 {[%emt 0:00:38]} gxh5 {[%emt 0:00:07]} 51. Kg2 {[%emt 0:00:43]} h4 {[%emt 0:00:07]} 52. Kf2 {[%emt 0:00:05]} f5 {[%emt 0:00:05]} 53. Kg2 {[%emt 0:00:58]} Ke3 {[%emt 0:00:06]} 54. Kf1 {[%emt 0:00:14]} f4 {[%emt 0:00:19]} 55. Ke1 {[%emt 0:00:20]} Kf3 {[%emt 0:00:21]} 56. Kf1 {[%emt 0:00:17]} Kg3 {[%emt 0:00:05]} 57. Ke2 {[%emt 0:00:28]} Kg2 {[%emt 0:00:34]} 58. Kd3 {[%emt 0:00:37]} f3 {[%emt 0:00:06]} 59. Kc4 {[%emt 0:00:09]} f2 {[%emt 0:00:06]} 60. Kb5 {[%emt 0:00:05]} f1=Q+ {[%emt 0:00:09]} 61. Kxa5 {[%emt 0:00:05]} Kxh3 {[%emt 0:00:10]} 62. Kb6 {[%emt 0:00:09]} Kg3 {[%emt 0:00:05]} 63. a5 {[%emt 0:00:07]} h3 {[%emt 0:00:08]} 64. a6 {[%emt 0:00:06]} h2 {[%emt 0:00:10]} 65. a7 {[%emt 0:00:05]} h1=Q {[%emt 0:00:12]} 66. Kc7 {[%emt 0:00:05]} Qc4+ {[%emt 0:00:17]} 67. Kb8 {[%emt 0:00:12]} Qb1+ {[%emt 0:00:25]} 68. Ka8 {[%emt 0:00:07]} Qc8# {[%emt 0:00:04]} 0-1

[Event "AZE-ch Women 2019"]
[Site "Baku"]
[Date "2019.02.10"]
[Round "7.2"]
[White "Mamedjarova, Zeinab"]
[Black "Balajayeva, Khanim"]
[Result "0-1"]
[ECO "D04"]
[WhiteElo "2307"]
[BlackElo "2397"]
[Annotator "NA"]
[PlyCount "124"]
[EventDate "2019.02.04"]
[EventType "swiss"]
[EventCountry "AZE"]
[SourceTitle "playchess.com"]
[Source "ChessBase"]
[SourceQuality "1"]
[TimeControl "40/5400+30:1800+30"]

1. d4 {[%emt 0:00:00]} d5 {[%emt 0:00:00]} 2. Nf3 {[%emt 0:00:00]} Nf6 {[%emt 0:00:00]} 3. e3 {[%emt 0:02:03]} c5 {[%emt 0:00:16]} 4. Nbd2 {[%emt 0:05:14]} Nc6 {[%emt 0:01:06]} 5. a3 {[%emt 0:00:41]} cxd4 {[%emt 0:02:06]} 6. exd4 {[%emt 0:00:47]} Bg4 {[%emt 0:01:03]} 7. h3 {[%emt 0:00:44]} Bh5 {[%emt 0:00:50]} 8. Be2 {[%emt 0:04:51]} e6 {[%emt 0:01:06]} 9. O-O {[%emt 0:00:07]} Bd6 {[%emt 0:01:39]} 10. b3 {[%emt 0:09:44]} O-O {[%emt 0:04:31]} 11. Bb2 {[%emt 0:00:18]} Rc8 {[%emt 0:01:21]} 12. Ne5 {[%emt 0:06:49]} Bxe2 {[%emt 0:02:57]} 13. Qxe2 {[%emt 0:00:33]} Qb6 {[%emt 0:13:13]} 14. Qd3 {[%emt 0:13:52]} Rfd8 {[%emt 0:15:55]} 15. Rfe1 {[%emt 0:05:57]} Ne7 {[%emt 0:02:56]} 16. Re2 {[%emt 0:08:28]} Ng6 {[%emt 0:06:57]} 17. g3 {[%emt 0:01:36]} Qc7 {[%emt 0:02:13]} 18. Rc1 {[%emt 0:13:15]} Bxe5 {[%emt 0:02:13]} 19. dxe5 {[%emt 0:00:33]} Nd7 {[%emt 0:00:15]} 20. Nf3 {[%emt 0:04:32]} Nc5 {[%emt 0:00:53]} 21. Qe3 {[%emt 0:01:34]} a6 {[%emt 0:02:56]} 22. Bd4 {[%emt 0:09:11]} b5 {[%emt 0:04:11]} 23. Ree1 {[%emt 0:06:18]} Ne7 {[%emt 0:04:10]} 24. g4 {[%emt 0:00:28]} Nd7 {[%emt 0:01:29]} 25. Bb2 {[%emt 0:00:41]} Nc6 {[%emt 0:04:43]} 26. Kg2 {[%emt 0:04:11]} Qb6 {[%emt 0:00:45]} 27. Nd2 {[%emt 0:00:22]} Qxe3 {[%emt 0:00:22]} 28. Rxe3 {[%emt 0:00:12]} d4 {[%emt 0:00:14]} 29. Re4 {[%emt 0:00:14]} Ndxe5 {[%emt 0:00:55]} 30. f4 {[%emt 0:00:32]} Ng6 {[%emt 0:00:27]} 31. Kg3 {[%emt 0:00:53]} d3 {[%emt 0:04:23]} 32. Nf3 {[%emt 0:00:45]} Na5 {[%emt 0:01:13]} 33. b4 {[%emt 0:00:33]} Nc4 {[%emt 0:00:18]} 34. Bd4 {[%emt 0:00:26]} Nxa3 {[%emt 0:00:42]} 35. f5 {[%emt 0:00:10]} Nf8 {[%emt 0:01:04]} 36. f6 {[%emt 0:00:25]} gxf6 {[%emt 0:01:57]} 37. Bxf6 {[%emt 0:00:11]} Rd5 {[%emt 0:00:04]} 38. c3 {[%emt 0:00:28]} Nd7 {[%emt 0:02:47]} 39. Bd4 {[%emt 0:00:16]} Nc2 {[%emt 0:00:05]} 40. Rd1 {[%emt 0:00:00]} Nxd4 {[%emt 0:00:00]} 41. cxd4 {[%emt 0:03:55]} Rc4 {[%emt 0:01:04]} 42. Rxd3 {[%emt 0:01:43]} Rxb4 {[%emt 0:00:46]} 43. Ra3 {[%emt 0:03:05]} Ra4 {[%emt 0:04:29]} 44. Rc3 {[%emt 0:05:12]} Rc4 {[%emt 0:00:57]} 45. Rxc4 {[%emt 0:00:15]} bxc4 {[%emt 0:00:04]} 46. Re2 {[%emt 0:01:16]} Nb6 {[%emt 0:01:16]} 47. Ra2 {[%emt 0:01:29]} a5 {[%emt 0:02:29]} 48. Ne5 {[%emt 0:04:28]} Rxd4 {[%emt 0:11:16]} 49. Rb2 {[%emt 0:11:29]} Nd7 {[%emt 0:01:52]} 50. Nc6 {[%emt 0:01:06]} c3 {[%emt 0:04:18]} 51. Rc2 {[%emt 0:01:12]} Rd3+ {[%emt 0:00:03]} 52. Kh4 {[%emt 0:00:06]} a4 {[%emt 0:00:41]} 53. Ra2 {[%emt 0:02:27]} Nc5 {[%emt 0:01:03]} 54. Rc2 {[%emt 0:00:50]} Ne4 {[%emt 0:01:19]} 55. Re2 {[%emt 0:00:21]} Nd2 {[%emt 0:01:40]} 56. Nb4 {[%emt 0:00:39]} Nf3+ {[%emt 0:00:29]} 57. Kg3 {[%emt 0:00:32]} Nd4+ {[%emt 0:00:07]} 58. Nxd3 {[%emt 0:00:04]} Nxe2+ {[%emt 0:00:03]} 59. Kf3 {[%emt 0:00:08]} a3 {[%emt 0:00:18]} 60. Nb4 {[%emt 0:00:02]} Nc1 {[%emt 0:00:26]} 61. Nc2 {[%emt 0:00:18]} a2 {[%emt 0:00:10]} 62. Na1 {[%emt 0:00:17]} Nb3 {[%emt 0:00:14]} 0-1